{"text_format":"1","workbook":"xlsx","n_sheets":2,"sheets":["リストから選択_ ctrl + ; で自動入力","data"],"not_rendered":{"charts":0,"images":0,"macros":1,"external_links":0,"defined_names":1,"comments":0,"pivot_tables":0},"unopened":[],"bounds":{"document_bytes":16777216,"sheet_cells":100000,"rows_first":2000,"rows_last":500,"rows_between":2000,"halvings":0,"cell_chars":16384,"cell_head_chars":4096},"cells_cut":0,"cells_raw":0,"read":"whole","date_system":"1900"}

{"sheet":"リストから選択_ ctrl + ; で自動入力","index":0,"n_rows":26,"n_cols":13,"rows_kept":26,"cut":false,"hidden":false,"merged":[[0,0,1,9]]}
["MIRS　物品発注依頼票",null,null,null,null,null,null,null,null,null,null,{"$f":"A4&\"_\"&TEXT(D4,\"yyyy-mm-dd\")","v":"リストから選択_ ctrl + ; で自動入力"}," ctrl + ; で自動入力"]
[null,null,null,null,null,null,null,null,null,null,null,"リストから選択"]
["チーム名","依頼者名",null,"依頼日",null,null,null,null,null,null,null,{"$f":"\"MIRS\"&RIGHT(YEAR(NOW()),2)&\"01\"","v":"MIRS2401"},"秋月電子通商"]
["リストから選択"," ",null," ctrl + ; で自動入力","← 依頼者と依頼日を入力",null,null,null,null,"← このボタンでファイルを保存する",null,{"$f":"\"MIRS\"&$L$9&\"02\"","v":"MIRS2402"},"モノタロウ"]
[null,null,null,null,null,null,null,null,null,null,null,{"$f":"\"MIRS\"&$L$9&\"03\"","v":"MIRS2403"},"ミスミ"]
["物品名\n（金属加工部品はサイズも記載すること）","発注先\n（リストから選択）","コード型番","型番","単価（税込）","数量","単位","価格","備考（商品詳細の載ったURLを記述すること）\nセル内の改行はALT+Enter","根拠ドキュメント",null,{"$f":"\"MIRS\"&$L$9&\"04\"","v":"MIRS2404"},"マルツオンライン"]
["【例】アルミフレーム　５シリーズ　正方形　２０×２０ｍｍ　１列溝　４面溝　300mm","ミスミ",{"$f":"IF(B7=\"RSコンポーネンツ\",\"RS品番\",IF(B7=\"秋月電子通商\",\"通販コード\",IF(B7=\"ミスミ\",\"型番\",IF(B7=\"モノタロウ\",\"注文コード\",IF(B7=\"ビックカメラ\",\"JAN\",IF(B7=\"スイッチサイエンス\",\"コード番号 \",IF(B7=\"アスクル\",\"お申込番号\",IF(B7=\"\",\"\",\"型番\"))))))))","v":"型番"},"NFS5-2020-300",141,1,"式",{"$f":"IF(E7=\"\",\"\",E7*F7)","v":141},"https://jp.misumi-ec.com/vona2/detail/110302683830/ 長さ、材質等をしていして唯一の型番にする。",null,null,{"$f":"\"MIRS\"&$L$9&\"05\"","v":"MIRS2405"},"ビックカメラ"]
["【例】六角穴付ボルト(鉄/クローム)全ねじ M2×3mm","モノタロウ",{"$f":"IF(B8=\"RSコンポーネンツ\",\"RS品番\",IF(B8=\"秋月電子通商\",\"通販コード\",IF(B8=\"ミスミ\",\"型番\",IF(B8=\"モノタロウ\",\"注文コード\",IF(B8=\"ビックカメラ\",\"JAN\",IF(B8=\"スイッチサイエンス\",\"コード番号 \",IF(B8=\"アスクル\",\"お申込番号\",IF(B8=\"\",\"\",\"型番\"))))))))","v":"注文コード"},41500882,583,2,"袋",1166,"https://www.monotaro.com/g/00432606/ (製品唯一のページにリンクしていないので不可)",null,null,null,"RSコンポーネンツ"]
[null,null,{"$f":"IF(B9=\"RSコンポーネンツ\",\"RS品番\",IF(B9=\"秋月電子通商\",\"通販コード\",IF(B9=\"ミスミ\",\"型番\",IF(B9=\"モノタロウ\",\"注文コード\",IF(B9=\"ビックカメラ\",\"JAN\",IF(B9=\"スイッチサイエンス\",\"コード番号 \",IF(B9=\"アスクル\",\"お申込番号\",IF(B9=\"\",\"\",\"型番\"))))))))","v":""},null,null,null,null,"",null,null,null,24,"スイッチサイエンス"]
[null,null,"",null,null,null,null,"",null,null,null,null,"アスクル"]
[null,null,"",null,null,null,null,"",null,null,null,null,"チップワンストップ"]
[null,null,"",null,null,null,null,""]
[null,null,"",null,null,null,null,"",null,null,null,{"$f":"RIGHT(DAY(NOW()),2)","v":"12"}]
[null,null,"",null,null,null,null,"",null,null,null,"2023-11-22"]
[null,null,"",null,null,null,null,""]
[null,null,"",null,null,null,null,"",null,null,null,{"$f":"RIGHT(A4,4)&\"_order_request_\"&TEXT(D4,\"MMDD\")&\"_\"&TEXT(NOW(),\"HHMM\")","v":"から選択_order_request_ ctrl + ; で自動入力_1452"}]
[null,null,"",null,null,null,null,""]
[null,null,"",null,null,null,null,""]
[null,null,"",null,null,null,null,""]
[null,null,"",null,null,null,null,""]
[null,null,"",null,null,null,null,""]
[null,null,"",null,null,null,null,""]
[null,null,"",null,null,null,null,""]
[null,null,"",null,null,null,null,""]
[null,null,"",null,null,null,null,""]
[null,null,"",null,null,null,null,""]

{"sheet":"data","index":1,"n_rows":22,"n_cols":35,"rows_kept":22,"cut":false,"hidden":false,"merged":[]}
["依頼書番号",null,null,"品名/件名","規格","数量","単位",null,"税込金額",null,null,null,null,null,null,null,null,null,null,null,null,null,null,null,null,null,null,null,null,null,null,"希望業者",null,null,"納入希望日"]
[null,null,null,{"$f":"'リストから選択_ ctrl + ; で自動入力'!$A7","v":"【例】アルミフレーム　５シリーズ　正方形　２０×２０ｍｍ　１列溝　４面溝　300mm"},{"$f":"'リストから選択_ ctrl + ; で自動入力'!$D7","v":"NFS5-2020-300"},{"$f":"'リストから選択_ ctrl + ; で自動入力'!$F7","v":1},{"$f":"'リストから選択_ ctrl + ; で自動入力'!$G7","v":"式"},null,{"$f":"'リストから選択_ ctrl + ; で自動入力'!$H7","v":141},null,null,null,null,null,null,null,null,null,null,null,null,null,null,null,null,null,null,null,null,null,null,{"$f":"'リストから選択_ ctrl + ; で自動入力'!$B7","v":"ミスミ"}]
[null,null,null,{"$f":"'リストから選択_ ctrl + ; で自動入力'!$A8","v":"【例】六角穴付ボルト(鉄/クローム)全ねじ M2×3mm"},{"$f":"'リストから選択_ ctrl + ; で自動入力'!$D8","v":41500882},{"$f":"'リストから選択_ ctrl + ; で自動入力'!$F8","v":2},{"$f":"'リストから選択_ ctrl + ; で自動入力'!$G8","v":"袋"},null,{"$f":"'リストから選択_ ctrl + ; で自動入力'!$H8","v":1166},null,null,null,null,null,null,null,null,null,null,null,null,null,null,null,null,null,null,null,null,null,null,{"$f":"'リストから選択_ ctrl + ; で自動入力'!$B8","v":"モノタロウ"}]
[null,null,null,{"$f":"'リストから選択_ ctrl + ; で自動入力'!$A9","v":0},{"$f":"'リストから選択_ ctrl + ; で自動入力'!$D9","v":0},{"$f":"'リストから選択_ ctrl + ; で自動入力'!$F9","v":0},{"$f":"'リストから選択_ ctrl + ; で自動入力'!$G9","v":0},null,{"$f":"'リストから選択_ ctrl + ; で自動入力'!$H9","v":""},null,null,null,null,null,null,null,null,null,null,null,null,null,null,null,null,null,null,null,null,null,null,{"$f":"'リストから選択_ ctrl + ; で自動入力'!$B9","v":0}]
[null,null,null,{"$f":"'リストから選択_ ctrl + ; で自動入力'!$A10","v":0},{"$f":"'リストから選択_ ctrl + ; で自動入力'!$D10","v":0},{"$f":"'リストから選択_ ctrl + ; で自動入力'!$F10","v":0},{"$f":"'リストから選択_ ctrl + ; で自動入力'!$G10","v":0},null,{"$f":"'リストから選択_ ctrl + ; で自動入力'!$H10","v":""},null,null,null,null,null,null,null,null,null,null,null,null,null,null,null,null,null,null,null,null,null,null,{"$f":"'リストから選択_ ctrl + ; で自動入力'!$B10","v":0}]
[null,null,null,{"$f":"'リストから選択_ ctrl + ; で自動入力'!$A11","v":0},{"$f":"'リストから選択_ ctrl + ; で自動入力'!$D11","v":0},{"$f":"'リストから選択_ ctrl + ; で自動入力'!$F11","v":0},{"$f":"'リストから選択_ ctrl + ; で自動入力'!$G11","v":0},null,{"$f":"'リストから選択_ ctrl + ; で自動入力'!$H11","v":""},null,null,null,null,null,null,null,null,null,null,null,null,null,null,null,null,null,null,null,null,null,null,{"$f":"'リストから選択_ ctrl + ; で自動入力'!$B11","v":0}]
[null,null,null,{"$f":"'リストから選択_ ctrl + ; で自動入力'!$A12","v":0},{"$f":"'リストから選択_ ctrl + ; で自動入力'!$D12","v":0},{"$f":"'リストから選択_ ctrl + ; で自動入力'!$F12","v":0},{"$f":"'リストから選択_ ctrl + ; で自動入力'!$G12","v":0},null,{"$f":"'リストから選択_ ctrl + ; で自動入力'!$H12","v":""},null,null,null,null,null,null,null,null,null,null,null,null,null,null,null,null,null,null,null,null,null,null,{"$f":"'リストから選択_ ctrl + ; で自動入力'!$B12","v":0}]
[null,null,null,{"$f":"'リストから選択_ ctrl + ; で自動入力'!$A13","v":0},{"$f":"'リストから選択_ ctrl + ; で自動入力'!$D13","v":0},{"$f":"'リストから選択_ ctrl + ; で自動入力'!$F13","v":0},{"$f":"'リストから選択_ ctrl + ; で自動入力'!$G13","v":0},null,{"$f":"'リストから選択_ ctrl + ; で自動入力'!$H13","v":""},null,null,null,null,null,null,null,null,null,null,null,null,null,null,null,null,null,null,null,null,null,null,{"$f":"'リストから選択_ ctrl + ; で自動入力'!$B13","v":0}]
[null,null,null,{"$f":"'リストから選択_ ctrl + ; で自動入力'!$A14","v":0},{"$f":"'リストから選択_ ctrl + ; で自動入力'!$D14","v":0},{"$f":"'リストから選択_ ctrl + ; で自動入力'!$F14","v":0},{"$f":"'リストから選択_ ctrl + ; で自動入力'!$G14","v":0},null,{"$f":"'リストから選択_ ctrl + ; で自動入力'!$H14","v":""},null,null,null,null,null,null,null,null,null,null,null,null,null,null,null,null,null,null,null,null,null,null,{"$f":"'リストから選択_ ctrl + ; で自動入力'!$B14","v":0}]
[null,null,null,{"$f":"'リストから選択_ ctrl + ; で自動入力'!$A15","v":0},{"$f":"'リストから選択_ ctrl + ; で自動入力'!$D15","v":0},{"$f":"'リストから選択_ ctrl + ; で自動入力'!$F15","v":0},{"$f":"'リストから選択_ ctrl + ; で自動入力'!$G15","v":0},null,{"$f":"'リストから選択_ ctrl + ; で自動入力'!$H15","v":""},null,null,null,null,null,null,null,null,null,null,null,null,null,null,null,null,null,null,null,null,null,null,{"$f":"'リストから選択_ ctrl + ; で自動入力'!$B15","v":0}]
[null,null,null,{"$f":"'リストから選択_ ctrl + ; で自動入力'!$A16","v":0},{"$f":"'リストから選択_ ctrl + ; で自動入力'!$D16","v":0},{"$f":"'リストから選択_ ctrl + ; で自動入力'!$F16","v":0},{"$f":"'リストから選択_ ctrl + ; で自動入力'!$G16","v":0},null,{"$f":"'リストから選択_ ctrl + ; で自動入力'!$H16","v":""},null,null,null,null,null,null,null,null,null,null,null,null,null,null,null,null,null,null,null,null,null,null,{"$f":"'リストから選択_ ctrl + ; で自動入力'!$B16","v":0}]
[null,null,null,{"$f":"'リストから選択_ ctrl + ; で自動入力'!$A17","v":0},{"$f":"'リストから選択_ ctrl + ; で自動入力'!$D17","v":0},{"$f":"'リストから選択_ ctrl + ; で自動入力'!$F17","v":0},{"$f":"'リストから選択_ ctrl + ; で自動入力'!$G17","v":0},null,{"$f":"'リストから選択_ ctrl + ; で自動入力'!$H17","v":""},null,null,null,null,null,null,null,null,null,null,null,null,null,null,null,null,null,null,null,null,null,null,{"$f":"'リストから選択_ ctrl + ; で自動入力'!$B17","v":0}]
[null,null,null,{"$f":"'リストから選択_ ctrl + ; で自動入力'!$A18","v":0},{"$f":"'リストから選択_ ctrl + ; で自動入力'!$D18","v":0},{"$f":"'リストから選択_ ctrl + ; で自動入力'!$F18","v":0},{"$f":"'リストから選択_ ctrl + ; で自動入力'!$G18","v":0},null,{"$f":"'リストから選択_ ctrl + ; で自動入力'!$H18","v":""},null,null,null,null,null,null,null,null,null,null,null,null,null,null,null,null,null,null,null,null,null,null,{"$f":"'リストから選択_ ctrl + ; で自動入力'!$B18","v":0}]
[null,null,null,{"$f":"'リストから選択_ ctrl + ; で自動入力'!$A19","v":0},{"$f":"'リストから選択_ ctrl + ; で自動入力'!$D19","v":0},{"$f":"'リストから選択_ ctrl + ; で自動入力'!$F19","v":0},{"$f":"'リストから選択_ ctrl + ; で自動入力'!$G19","v":0},null,{"$f":"'リストから選択_ ctrl + ; で自動入力'!$H19","v":""},null,null,null,null,null,null,null,null,null,null,null,null,null,null,null,null,null,null,null,null,null,null,{"$f":"'リストから選択_ ctrl + ; で自動入力'!$B19","v":0}]
[null,null,null,{"$f":"'リストから選択_ ctrl + ; で自動入力'!$A20","v":0},{"$f":"'リストから選択_ ctrl + ; で自動入力'!$D20","v":0},{"$f":"'リストから選択_ ctrl + ; で自動入力'!$F20","v":0},{"$f":"'リストから選択_ ctrl + ; で自動入力'!$G20","v":0},null,{"$f":"'リストから選択_ ctrl + ; で自動入力'!$H20","v":""},null,null,null,null,null,null,null,null,null,null,null,null,null,null,null,null,null,null,null,null,null,null,{"$f":"'リストから選択_ ctrl + ; で自動入力'!$B20","v":0}]
[null,null,null,{"$f":"'リストから選択_ ctrl + ; で自動入力'!$A21","v":0},{"$f":"'リストから選択_ ctrl + ; で自動入力'!$D21","v":0},{"$f":"'リストから選択_ ctrl + ; で自動入力'!$F21","v":0},{"$f":"'リストから選択_ ctrl + ; で自動入力'!$G21","v":0},null,{"$f":"'リストから選択_ ctrl + ; で自動入力'!$H21","v":""},null,null,null,null,null,null,null,null,null,null,null,null,null,null,null,null,null,null,null,null,null,null,{"$f":"'リストから選択_ ctrl + ; で自動入力'!$B21","v":0}]
[null,null,null,{"$f":"'リストから選択_ ctrl + ; で自動入力'!$A22","v":0},{"$f":"'リストから選択_ ctrl + ; で自動入力'!$D22","v":0},{"$f":"'リストから選択_ ctrl + ; で自動入力'!$F22","v":0},{"$f":"'リストから選択_ ctrl + ; で自動入力'!$G22","v":0},null,{"$f":"'リストから選択_ ctrl + ; で自動入力'!$H22","v":""},null,null,null,null,null,null,null,null,null,null,null,null,null,null,null,null,null,null,null,null,null,null,{"$f":"'リストから選択_ ctrl + ; で自動入力'!$B22","v":0}]
[null,null,null,{"$f":"'リストから選択_ ctrl + ; で自動入力'!$A23","v":0},{"$f":"'リストから選択_ ctrl + ; で自動入力'!$D23","v":0},{"$f":"'リストから選択_ ctrl + ; で自動入力'!$F23","v":0},{"$f":"'リストから選択_ ctrl + ; で自動入力'!$G23","v":0},null,{"$f":"'リストから選択_ ctrl + ; で自動入力'!$H23","v":""},null,null,null,null,null,null,null,null,null,null,null,null,null,null,null,null,null,null,null,null,null,null,{"$f":"'リストから選択_ ctrl + ; で自動入力'!$B23","v":0}]
[null,null,null,{"$f":"'リストから選択_ ctrl + ; で自動入力'!$A24","v":0},{"$f":"'リストから選択_ ctrl + ; で自動入力'!$D24","v":0},{"$f":"'リストから選択_ ctrl + ; で自動入力'!$F24","v":0},{"$f":"'リストから選択_ ctrl + ; で自動入力'!$G24","v":0},null,{"$f":"'リストから選択_ ctrl + ; で自動入力'!$H24","v":""},null,null,null,null,null,null,null,null,null,null,null,null,null,null,null,null,null,null,null,null,null,null,{"$f":"'リストから選択_ ctrl + ; で自動入力'!$B24","v":0}]
[null,null,null,{"$f":"'リストから選択_ ctrl + ; で自動入力'!$A25","v":0},{"$f":"'リストから選択_ ctrl + ; で自動入力'!$D25","v":0},{"$f":"'リストから選択_ ctrl + ; で自動入力'!$F25","v":0},{"$f":"'リストから選択_ ctrl + ; で自動入力'!$G25","v":0},null,{"$f":"'リストから選択_ ctrl + ; で自動入力'!$H25","v":""},null,null,null,null,null,null,null,null,null,null,null,null,null,null,null,null,null,null,null,null,null,null,{"$f":"'リストから選択_ ctrl + ; で自動入力'!$B25","v":0}]
[null,null,null,{"$f":"'リストから選択_ ctrl + ; で自動入力'!$A26","v":0},{"$f":"'リストから選択_ ctrl + ; で自動入力'!$D26","v":0},{"$f":"'リストから選択_ ctrl + ; で自動入力'!$F26","v":0},{"$f":"'リストから選択_ ctrl + ; で自動入力'!$G26","v":0},null,{"$f":"'リストから選択_ ctrl + ; で自動入力'!$H26","v":""},null,null,null,null,null,null,null,null,null,null,null,null,null,null,null,null,null,null,null,null,null,null,{"$f":"'リストから選択_ ctrl + ; で自動入力'!$B26","v":0}]
[null,null,null,null,null,null,null,null,{"$f":"SUM(I2:I21)","v":1307}]